[Event "Early-Titled-Tuesday-Blitz-February-06-2024"]
[Site "Chess.com"]
[Date "2024.02.06"]
[Round "9"]
[White "VomDingJetztHer"]
[Black "Bilan_Danila"]
[Result "1-0"]
[WhiteElo "2506"]
[BlackElo "2608"]
[TimeControl "180+1"]
[EndTime "9:46:38 PST"]
[Termination "VomDingJetztHer won by resignation"]

1. e4 {[%clk 0:03:00.9]} 1... c6 {[%clk 0:02:57.5]} 2. Nf3 {[%clk 0:02:59.9]}
2... d5 {[%clk 0:02:58.4]} 3. d3 {[%clk 0:03:00.1]} 3... Bg4 {[%clk 0:02:57.8]}
4. h3 {[%clk 0:02:58.7]} 4... Bh5 {[%clk 0:02:57.7]} 5. Qe2 {[%clk 0:02:58.3]}
5... e6 {[%clk 0:02:55.9]} 6. g4 {[%clk 0:02:57.1]} 6... Bg6 {[%clk 0:02:55.6]}
7. h4 {[%clk 0:02:49.4]} 7... h6 {[%clk 0:02:44]} 8. Ne5 {[%clk 0:02:37.6]} 8...
Bh7 {[%clk 0:02:43.7]} 9. g5 {[%clk 0:02:36]} 9... Nd7 {[%clk 0:02:31.7]} 10.
exd5 {[%clk 0:02:20.7]} 10... Nxe5 {[%clk 0:02:20.2]} 11. Qxe5 {[%clk
0:02:17.3]} 11... Qxd5 {[%clk 0:01:48.2]} 12. Qxd5 {[%clk 0:02:16.4]} 12... cxd5
{[%clk 0:01:47.9]} 13. b3 {[%clk 0:01:58.3]} 13... Rc8 {[%clk 0:01:36.8]} 14.
Kd1 {[%clk 0:01:43.2]} 14... Bf5 {[%clk 0:01:23.6]} 15. Bg2 {[%clk 0:01:31.7]}
15... hxg5 {[%clk 0:01:16]} 16. hxg5 {[%clk 0:01:30]} 16... Rxh1+ {[%clk
0:01:14.4]} 17. Bxh1 {[%clk 0:01:30.9]} 17... Bd6 {[%clk 0:01:06.9]} 18. Bb2
{[%clk 0:01:27.7]} 18... Kf8 {[%clk 0:00:55.5]} 19. Nd2 {[%clk 0:01:21.9]} 19...
Ne7 {[%clk 0:00:51.8]} 20. Nf3 {[%clk 0:01:13]} 20... Ng6 {[%clk 0:00:48.7]} 21.
Nd4 {[%clk 0:01:09.3]} 21... Bg4+ {[%clk 0:00:36.8]} 22. Bf3 {[%clk 0:01:05.5]}
22... Bxf3+ {[%clk 0:00:25.8]} 23. Nxf3 {[%clk 0:01:06.4]} 23... Bf4 {[%clk
0:00:26.6]} 24. c4 {[%clk 0:01:03.1]} 24... dxc4 {[%clk 0:00:22.3]} 25. dxc4
{[%clk 0:00:58.8]} 25... e5 {[%clk 0:00:18.2]} 26. Ke2 {[%clk 0:00:45.3]} 26...
e4 {[%clk 0:00:17.7]} 27. Nd2 {[%clk 0:00:44.6]} 27... Bxg5 {[%clk 0:00:16.5]}
28. Nxe4 {[%clk 0:00:44.4]} 28... Re8 {[%clk 0:00:16.7]} 29. Kd3 {[%clk
0:00:20.5]} 29... Nf4+ {[%clk 0:00:16.5]} 30. Kd4 {[%clk 0:00:21.2]} 30... Bd8
{[%clk 0:00:09.6]} 31. f3 {[%clk 0:00:18.5]} 31... f5 {[%clk 0:00:08]} 32. Nd6
{[%clk 0:00:16.7]} 32... Bf6+ {[%clk 0:00:07.2]} 33. Kc5 {[%clk 0:00:13.8]}
33... Bxb2 {[%clk 0:00:06.3]} 34. Rh1 {[%clk 0:00:14.3]} 34... Re2 {[%clk
0:00:03.7]} 35. Rh8+ {[%clk 0:00:13.2]} 35... Ke7 {[%clk 0:00:04.3]} 36. Nxf5+
{[%clk 0:00:12]} 36... Kf6 {[%clk 0:00:04.9]} 37. Rf8+ {[%clk 0:00:11.7]} 37...
Kg5 {[%clk 0:00:04.7]} 38. Ng3 {[%clk 0:00:07.4]} 38... Ne6+ {[%clk 0:00:04.4]}
39. Kd6 {[%clk 0:00:06.3]} 39... Ba3+ {[%clk 0:00:04]} 40. c5 {[%clk 0:00:04]}
40... Bxc5+ {[%clk 0:00:03.7]} 41. Kd5 {[%clk 0:00:04.7]} 41... Nf4+ {[%clk
0:00:02.5]} 42. Kxc5 {[%clk 0:00:04.6]} 42... Rg2 {[%clk 0:00:02.3]} 43. Ne4+
{[%clk 0:00:04.4]} 43... Kg6 {[%clk 0:00:02]} 44. Rxf4 {[%clk 0:00:04.9]} 44...
Rxa2 {[%clk 0:00:02.3]} 45. Rg4+ {[%clk 0:00:04.7]} 45... Kf7 {[%clk 0:00:02.2]}
46. Nd6+ {[%clk 0:00:05.3]} 46... Ke6 {[%clk 0:00:02.7]} 47. Nxb7 {[%clk
0:00:04.8]} 47... Rc2+ {[%clk 0:00:02.7]} 48. Kb4 {[%clk 0:00:04.4]} 48... Rc7
{[%clk 0:00:02.8]} 49. Nc5+ {[%clk 0:00:04.7]} 49... Kf5 {[%clk 0:00:03.3]} 50.
Rd4 {[%clk 0:00:04.2]} 50... g5 {[%clk 0:00:03.7]} 51. Na6 {[%clk 0:00:04.2]}
51... Rb7+ {[%clk 0:00:03.3]} 52. Ka4 {[%clk 0:00:04.2]} 52... Rb6 {[%clk
0:00:03.6]} 53. Nc5 {[%clk 0:00:04.1]} 53... Rc6 {[%clk 0:00:02.9]} 54. b4
{[%clk 0:00:04.6]} 54... Ke5 {[%clk 0:00:03]} 55. Re4+ {[%clk 0:00:04.4]} 55...
Kf5 {[%clk 0:00:03.2]} 56. Rg4 {[%clk 0:00:04.8]} 56... Rd6 {[%clk 0:00:02.7]}
57. Kb5 {[%clk 0:00:04.9]} 57... Rd1 {[%clk 0:00:03]} 58. Rc4 {[%clk 0:00:03]}
58... Ra1 {[%clk 0:00:03.8]} 59. Rc3 {[%clk 0:00:03]} 59... Kf4 {[%clk
0:00:03.5]} 60. Ne6+ {[%clk 0:00:03.1]} 60... Kg3 {[%clk 0:00:03.3]} 61. Nxg5
{[%clk 0:00:02.6]} 61... Kf4 {[%clk 0:00:04.2]} 62. Ne4 {[%clk 0:00:03.1]} 62...
Kf5 {[%clk 0:00:05.1]} 63. Nc5 {[%clk 0:00:03.7]} 63... Ke5 {[%clk 0:00:06]} 64.
Rc4 {[%clk 0:00:03.7]} 64... Kd5 {[%clk 0:00:06.5]} 65. f4 {[%clk 0:00:04.5]}
65... a6+ {[%clk 0:00:06.6]} 66. Nxa6 {[%clk 0:00:04]} 66... Rf1 {[%clk
0:00:05.5]} 67. Rc5+ {[%clk 0:00:04.5]} 67... Kd6 {[%clk 0:00:05.4]} 68. f5
{[%clk 0:00:05.3]} 68... Rf3 {[%clk 0:00:06]} 69. Nb8 {[%clk 0:00:05.6]} 69...
Rf1 {[%clk 0:00:05.6]} 70. Nc6 {[%clk 0:00:05.9]} 70... Ra1 {[%clk 0:00:06.1]}
71. Nd4 {[%clk 0:00:03.8]} 71... Rf1 {[%clk 0:00:07]} 72. Ne6 {[%clk 0:00:03.6]}
72... Rd1 {[%clk 0:00:07.9]} 73. Rc6+ {[%clk 0:00:03.9]} 73... Kd7 {[%clk
0:00:08.1]} 74. Nc5+ {[%clk 0:00:04.2]} 74... Ke7 {[%clk 0:00:07.3]} 75. Re6+
{[%clk 0:00:04.8]} 75... Kf7 {[%clk 0:00:07]} 76. Re5 {[%clk 0:00:05.5]} 76...
Kf6 {[%clk 0:00:07.9]} 77. Re6+ {[%clk 0:00:03.2]} 77... Kf7 {[%clk 0:00:07.4]}
78. Rc6 {[%clk 0:00:03.6]} 78... Rd5 {[%clk 0:00:06.6]} 79. f6 {[%clk 0:00:04]}
79... Rd1 {[%clk 0:00:06.3]} 80. Kb6 {[%clk 0:00:04.6]} 80... Rb1 {[%clk
0:00:06.5]} 81. b5 {[%clk 0:00:05]} 81... Ra1 {[%clk 0:00:07.4]} 82. Kb7 {[%clk
0:00:05.2]} 82... Rb1 {[%clk 0:00:07.2]} 83. b6 {[%clk 0:00:05.7]} 83... Ra1
{[%clk 0:00:07.7]} 84. Kc7 {[%clk 0:00:06]} 84... Rf1 {[%clk 0:00:07]} 85. b7
{[%clk 0:00:06.5]} 85... Rxf6 {[%clk 0:00:07.9]} 86. Rxf6+ {[%clk 0:00:06.8]}
86... Kxf6 {[%clk 0:00:08.8]} 87. b8=Q {[%clk 0:00:07.5]} 87... Ke5 {[%clk
0:00:09.7]} 88. Qe8+ {[%clk 0:00:07.7]} 88... Kd5 {[%clk 0:00:10.6]} 89. Nb7
{[%clk 0:00:07.8]} 89... Kc4 {[%clk 0:00:11.5]} 90. Qc6+ {[%clk 0:00:08.1]}
90... Kb4 {[%clk 0:00:11.8]} 91. Qc5+ {[%clk 0:00:08.1]} 91... Ka4 {[%clk
0:00:12.7]} 92. Qa5+ {[%clk 0:00:08.5]} 92... Kb3 {[%clk 0:00:13.1]} 93. Kc6
{[%clk 0:00:09.1]} 93... Kb2 {[%clk 0:00:13.4]} 94. Qa4 {[%clk 0:00:08.5]} 1-0

[Event "Early-Titled-Tuesday-Blitz-February-06-2024"]
[Site "Chess.com"]
[Date "2024.02.06"]
[Round "10"]
[White "BardArtem"]
[Black "amanjazu"]
[Result "1-0"]
[WhiteElo "2772"]
[BlackElo "2485"]
[TimeControl "180+1"]
[EndTime "9:50:33 PST"]
[Termination "BardArtem won by checkmate"]

1. e4 {[%clk 0:02:57.9]} 1... Nf6 {[%clk 0:03:00.4]} 2. e5 {[%clk 0:02:55.8]}
2... Nd5 {[%clk 0:03:00.8]} 3. Bc4 {[%clk 0:02:55]} 3... Nb6 {[%clk 0:03:00.9]}
4. Bb3 {[%clk 0:02:54.3]} 4... d6 {[%clk 0:03:01.1]} 5. d4 {[%clk 0:02:52.4]}
5... dxe5 {[%clk 0:02:59.8]} 6. Qh5 {[%clk 0:02:48.8]} 6... e6 {[%clk
0:02:56.3]} 7. dxe5 {[%clk 0:02:38.9]} 7... Nc6 {[%clk 0:02:56.4]} 8. Nf3 {[%clk
0:02:36.2]} 8... g6 {[%clk 0:02:54.9]} 9. Qg4 {[%clk 0:02:34.7]} 9... Bg7 {[%clk
0:02:55.1]} 10. Bg5 {[%clk 0:02:18.9]} 10... Qd7 {[%clk 0:02:27.4]} 11. Nc3
{[%clk 0:02:09.4]} 11... Nxe5 {[%clk 0:02:23.2]} 12. Nxe5 {[%clk 0:02:09.3]}
12... Bxe5 {[%clk 0:02:24.1]} 13. Rd1 {[%clk 0:02:09.2]} 13... Qc6 {[%clk
0:02:21]} 14. Rd8# {[%clk 0:01:56.3]} 1-0

[Event "Early-Titled-Tuesday-Blitz-February-06-2024"]
[Site "Chess.com"]
[Date "2024.02.06"]
[Round "10"]
[White "ri4mi"]
[Black "PedroGil25"]
[Result "1-0"]
[WhiteElo "2560"]
[BlackElo "2415"]
[TimeControl "180+1"]
[EndTime "9:50:39 PST"]
[Termination "ri4mi won by resignation"]

1. e4 {[%clk 0:03:00.9]} 1... c5 {[%clk 0:02:57.4]} 2. Nc3 {[%clk 0:03:00.7]}
2... e6 {[%clk 0:02:54.9]} 3. Nf3 {[%clk 0:03:00.4]} 3... a6 {[%clk 0:02:53.8]}
4. d4 {[%clk 0:03:01.3]} 4... cxd4 {[%clk 0:02:54.1]} 5. Nxd4 {[%clk 0:03:02.2]}
5... Qc7 {[%clk 0:02:54.2]} 6. g3 {[%clk 0:03:02.3]} 6... Bb4 {[%clk 0:02:50.6]}
7. Bg2 {[%clk 0:03:02.9]} 7... Bxc3+ {[%clk 0:02:48.5]} 8. bxc3 {[%clk
0:02:42.8]} 8... Qxc3+ {[%clk 0:02:49.4]} 9. Ke2 {[%clk 0:02:36.7]} 9... Qxa1
{[%clk 0:02:45.8]} 10. Qd3 {[%clk 0:02:31.2]} 10... Qxa2 {[%clk 0:02:40.5]} 11.
Ba3 {[%clk 0:02:17.6]} 11... Ne7 {[%clk 0:02:34.5]} 12. Qc3 {[%clk 0:02:10.8]}
12... Nbc6 {[%clk 0:02:28.1]} 13. Nxc6 {[%clk 0:02:04.7]} 13... Nxc6 {[%clk
0:02:29]} 14. Ra1 {[%clk 0:02:02.6]} 14... Qxa1 {[%clk 0:02:17.1]} 15. Qxa1
{[%clk 0:02:02.5]} 15... b5 {[%clk 0:02:16.5]} 16. Qxg7 {[%clk 0:02:01.7]} 1-0

[Event "Early-Titled-Tuesday-Blitz-February-06-2024"]
[Site "Chess.com"]
[Date "2024.02.06"]
[Round "10"]
[White "Jospem"]
[Black "Sattarov_Bobur"]
[Result "1-0"]
[WhiteElo "3049"]
[BlackElo "2798"]
[TimeControl "180+1"]
[EndTime "9:51:05 PST"]
[Termination "Jospem won by resignation"]

1. e4 {[%clk 0:03:00.9]} 1... e5 {[%clk 0:03:00.2]} 2. Nf3 {[%clk 0:03:01.4]}
2... Nc6 {[%clk 0:03:00.9]} 3. Nc3 {[%clk 0:03:02.3]} 3... Nf6 {[%clk
0:03:00.4]} 4. h3 {[%clk 0:03:03.2]} 4... Bb4 {[%clk 0:02:47.9]} 5. a3 {[%clk
0:03:03.3]} 5... Bxc3 {[%clk 0:02:46.9]} 6. dxc3 {[%clk 0:03:04.2]} 6... d6
{[%clk 0:02:47.2]} 7. Bd3 {[%clk 0:03:04.1]} 7... O-O {[%clk 0:02:34.1]} 8. Bg5
{[%clk 0:03:03.4]} 8... h6 {[%clk 0:02:33.3]} 9. Bh4 {[%clk 0:03:03.9]} 9... g5
{[%clk 0:02:29.9]} 10. Nxg5 {[%clk 0:03:03.8]} 10... hxg5 {[%clk 0:02:30.8]} 11.
Bxg5 {[%clk 0:03:04.7]} 11... Kg7 {[%clk 0:02:31.1]} 12. Qd2 {[%clk 0:03:04.7]}
12... Rh8 {[%clk 0:02:11.4]} 13. O-O-O {[%clk 0:03:04.3]} 13... Rh5 {[%clk
0:01:58.3]} 14. h4 {[%clk 0:03:03.9]} 14... Ne7 {[%clk 0:01:33.7]} 15. Be2
{[%clk 0:02:56.6]} 15... Qh8 {[%clk 0:01:13.7]} 16. Bxh5 {[%clk 0:02:54.9]}
16... Qxh5 {[%clk 0:01:14.6]} 17. f3 {[%clk 0:02:55]} 17... Be6 {[%clk 0:01:12]}
18. g4 {[%clk 0:02:55.1]} 18... Qh7 {[%clk 0:01:11.8]} 19. Bxf6+ {[%clk
0:02:55.2]} 1-0

[Event "Early-Titled-Tuesday-Blitz-February-06-2024"]
[Site "Chess.com"]
[Date "2024.02.06"]
[Round "10"]
[White "Abund"]
[Black "cukricek"]
[Result "1-0"]
[WhiteElo "2751"]
[BlackElo "2379"]
[TimeControl "180+1"]
[EndTime "9:51:12 PST"]
[Termination "Abund won by resignation"]

1. e4 {[%clk 0:03:00.9]} 1... c5 {[%clk 0:02:59.6]} 2. Nf3 {[%clk 0:03:00.7]}
2... g6 {[%clk 0:02:59.7]} 3. c3 {[%clk 0:02:58.8]} 3... d5 {[%clk 0:02:59.1]}
4. exd5 {[%clk 0:02:56.1]} 4... Qxd5 {[%clk 0:03:00]} 5. d4 {[%clk 0:02:56]}
5... Bg7 {[%clk 0:02:58.5]} 6. Nbd2 {[%clk 0:02:56.4]} 6... cxd4 {[%clk
0:02:58]} 7. Bc4 {[%clk 0:02:56.7]} 7... Qd6 {[%clk 0:02:57]} 8. Nxd4 {[%clk
0:02:57.2]} 8... Nf6 {[%clk 0:02:55.7]} 9. O-O {[%clk 0:02:52.8]} 9... O-O
{[%clk 0:02:55]} 10. N2f3 {[%clk 0:02:48.8]} 10... Rd8 {[%clk 0:02:54.5]} 11.
Qe2 {[%clk 0:02:46.1]} 11... Bg4 {[%clk 0:02:45.8]} 12. Bxf7+ {[%clk 0:02:41.1]}
12... Kxf7 {[%clk 0:02:37.9]} 13. Ne5+ {[%clk 0:02:40.7]} 13... Kg8 {[%clk
0:02:25.6]} 14. Nxg4 {[%clk 0:02:40.6]} 14... Nc6 {[%clk 0:02:24.1]} 15. Ne6
{[%clk 0:02:30.8]} 15... Rd7 {[%clk 0:02:18.1]} 16. Bf4 {[%clk 0:01:55.3]} 16...
Qd5 {[%clk 0:02:09.8]} 17. Rad1 {[%clk 0:01:49.9]} 1-0

[Event "Early-Titled-Tuesday-Blitz-February-06-2024"]
[Site "Chess.com"]
[Date "2024.02.06"]
[Round "10"]
[White "Maxfan2008"]
[Black "FormerProdigy"]
[Result "0-1"]
[WhiteElo "2562"]
[BlackElo "2986"]
[TimeControl "180+1"]
[EndTime "9:52:00 PST"]
[Termination "FormerProdigy won by checkmate"]

1. d4 {[%clk 0:03:00.9]} 1... d5 {[%clk 0:02:59.6]} 2. c4 {[%clk 0:03:00.2]}
2... c6 {[%clk 0:02:59.9]} 3. Nc3 {[%clk 0:03:00.3]} 3... Nf6 {[%clk 0:02:59]}
4. e3 {[%clk 0:03:00.5]} 4... e6 {[%clk 0:02:58.7]} 5. Nf3 {[%clk 0:03:00.3]}
5... Nbd7 {[%clk 0:02:58.9]} 6. Bd3 {[%clk 0:03:00.8]} 6... dxc4 {[%clk
0:02:58.8]} 7. Bxc4 {[%clk 0:03:01.7]} 7... b5 {[%clk 0:02:59.2]} 8. Bd3 {[%clk
0:03:01.8]} 8... Bd6 {[%clk 0:02:59.5]} 9. e4 {[%clk 0:03:01.6]} 9... e5 {[%clk
0:02:57]} 10. O-O {[%clk 0:03:01.2]} 10... O-O {[%clk 0:02:42]} 11. Bg5 {[%clk
0:02:58.7]} 11... Bb7 {[%clk 0:02:25.2]} 12. Kh1 {[%clk 0:02:51.5]} 12... a6
{[%clk 0:02:18.3]} 13. dxe5 {[%clk 0:02:51]} 13... Nxe5 {[%clk 0:02:19.2]} 14.
Nxe5 {[%clk 0:02:51.1]} 14... Bxe5 {[%clk 0:02:20.1]} 15. f4 {[%clk 0:02:51.3]}
15... Bxc3 {[%clk 0:02:14.3]} 16. bxc3 {[%clk 0:02:52.2]} 16... c5 {[%clk
0:02:14]} 17. Qe2 {[%clk 0:02:33.9]} 17... c4 {[%clk 0:02:01.8]} 18. Bc2 {[%clk
0:02:32.3]} 18... Qb6 {[%clk 0:02:02.1]} 19. e5 {[%clk 0:02:24.2]} 19... Nd5
{[%clk 0:02:01.6]} 20. Qh5 {[%clk 0:02:17.2]} 20... g6 {[%clk 0:01:50.2]} 21.
Qh6 {[%clk 0:02:11.1]} 21... Ne3 {[%clk 0:01:50.6]} 22. Rg1 {[%clk 0:01:44.8]}
22... Ng4 {[%clk 0:01:50]} 23. h3 {[%clk 0:01:31.9]} 23... Nxh6 {[%clk
0:01:49.3]} 24. Bxh6 {[%clk 0:01:32.8]} 24... Qe3 {[%clk 0:01:49]} 25. Rae1
{[%clk 0:01:28.3]} 25... Qxh3# {[%clk 0:01:48.8]} 0-1

[Event "Early-Titled-Tuesday-Blitz-February-06-2024"]
[Site "Chess.com"]
[Date "2024.02.06"]
[Round "10"]
[White "GothamChess"]
[Black "toninhojit"]
[Result "1-0"]
[WhiteElo "2704"]
[BlackElo "2535"]
[TimeControl "180+1"]
[EndTime "9:52:13 PST"]
[Termination "GothamChess won by resignation"]

1. e4 {[%clk 0:03:00.9]} 1... e5 {[%clk 0:03:00.3]} 2. Nf3 {[%clk 0:02:57.4]}
2... Nc6 {[%clk 0:03:00.8]} 3. c3 {[%clk 0:02:57.6]} 3... d6 {[%clk 0:02:58.6]}
4. d4 {[%clk 0:02:57.6]} 4... Be7 {[%clk 0:02:59.1]} 5. h3 {[%clk 0:02:56.4]}
5... Nf6 {[%clk 0:02:59.3]} 6. Be3 {[%clk 0:02:57.1]} 6... O-O {[%clk
0:02:56.9]} 7. Bd3 {[%clk 0:02:55.4]} 7... Re8 {[%clk 0:02:49.7]} 8. d5 {[%clk
0:02:54.5]} 8... Nb8 {[%clk 0:02:48.6]} 9. O-O {[%clk 0:02:54.7]} 9... c6 {[%clk
0:02:41.7]} 10. c4 {[%clk 0:02:53.1]} 10... a5 {[%clk 0:02:42.4]} 11. Nc3 {[%clk
0:02:51.2]} 11... Na6 {[%clk 0:02:43]} 12. a3 {[%clk 0:02:50.5]} 12... Nd7
{[%clk 0:02:40.2]} 13. b4 {[%clk 0:02:48.7]} 13... Rb8 {[%clk 0:02:22.5]} 14.
Rb1 {[%clk 0:02:45]} 14... axb4 {[%clk 0:02:21.9]} 15. axb4 {[%clk 0:02:44.9]}
15... c5 {[%clk 0:02:22.2]} 16. b5 {[%clk 0:02:19.7]} 16... Nb4 {[%clk
0:02:21.7]} 17. Ra1 {[%clk 0:01:59.8]} 17... Nxd3 {[%clk 0:02:17]} 18. Qxd3
{[%clk 0:02:00.7]} 18... Nb6 {[%clk 0:02:17.5]} 19. Nd2 {[%clk 0:01:47.1]} 19...
Qc7 {[%clk 0:02:17]} 20. f4 {[%clk 0:01:45.9]} 20... Bf6 {[%clk 0:02:11.9]} 21.
f5 {[%clk 0:01:45.4]} 21... Qe7 {[%clk 0:02:07.1]} 22. g4 {[%clk 0:01:43.9]}
22... Bg5 {[%clk 0:02:02.7]} 23. Bxg5 {[%clk 0:01:39.7]} 23... Qxg5 {[%clk
0:02:03.6]} 24. Nf3 {[%clk 0:01:40.2]} 24... Qf4 {[%clk 0:02:01.1]} 25. Ne2
{[%clk 0:01:40.1]} 25... Qh6 {[%clk 0:01:53.1]} 26. Kg2 {[%clk 0:01:39.8]} 26...
Bd7 {[%clk 0:01:52.5]} 27. g5 {[%clk 0:01:38.1]} 27... Qh5 {[%clk 0:01:40.7]}
28. Ng3 {[%clk 0:01:36.9]} 1-0

[Event "Early-Titled-Tuesday-Blitz-February-06-2024"]
[Site "Chess.com"]
[Date "2024.02.06"]
[Round "10"]
[White "PabloZarnicki"]
[Black "RobertoJBM"]
[Result "0-1"]
[WhiteElo "2642"]
[BlackElo "2814"]
[TimeControl "180+1"]
[EndTime "9:52:16 PST"]
[Termination "RobertoJBM won by resignation"]

1. e4 {[%clk 0:02:58.3]} 1... c6 {[%clk 0:02:59.9]} 2. d4 {[%clk 0:02:56.8]}
2... d5 {[%clk 0:03:00.8]} 3. Nc3 {[%clk 0:02:57.2]} 3... dxe4 {[%clk
0:03:00.1]} 4. Nxe4 {[%clk 0:02:58.1]} 4... Nd7 {[%clk 0:02:59.7]} 5. Ng5 {[%clk
0:02:56.9]} 5... Ngf6 {[%clk 0:02:59.6]} 6. Bd3 {[%clk 0:02:55.9]} 6... e6
{[%clk 0:02:59.6]} 7. N1f3 {[%clk 0:02:55.7]} 7... Bd6 {[%clk 0:02:58]} 8. Qe2
{[%clk 0:02:55]} 8... h6 {[%clk 0:02:57.4]} 9. Ne4 {[%clk 0:02:55.2]} 9... Nxe4
{[%clk 0:02:57.4]} 10. Qxe4 {[%clk 0:02:55.6]} 10... Qc7 {[%clk 0:02:57.6]} 11.
Qg4 {[%clk 0:02:55.2]} 11... g5 {[%clk 0:02:57.7]} 12. Qe4 {[%clk 0:02:48.1]}
12... b6 {[%clk 0:02:54.9]} 13. Bd2 {[%clk 0:02:45.7]} 13... Bb7 {[%clk
0:02:54.5]} 14. O-O-O {[%clk 0:02:45.6]} 14... O-O-O {[%clk 0:02:43.2]} 15. Rhe1
{[%clk 0:02:43]} 15... c5 {[%clk 0:02:38.6]} 16. Qe2 {[%clk 0:02:41.5]} 16...
Kb8 {[%clk 0:02:24.4]} 17. Ne5 {[%clk 0:02:33.2]} 17... Nf6 {[%clk 0:02:24]} 18.
dxc5 {[%clk 0:02:22]} 18... Bxc5 {[%clk 0:02:23.6]} 19. f3 {[%clk 0:02:17.5]}
19... Nd5 {[%clk 0:02:21.9]} 20. Kb1 {[%clk 0:02:13.1]} 20... Bd6 {[%clk
0:02:16.9]} 21. g3 {[%clk 0:02:05.2]} 21... Rc8 {[%clk 0:02:12.4]} 22. c4 {[%clk
0:02:01.9]} 22... Nb4 {[%clk 0:02:05.4]} 23. Bxb4 {[%clk 0:01:58.8]} 23... Bxb4
{[%clk 0:02:06.3]} 24. f4 {[%clk 0:01:46.4]} 24... Bxe1 {[%clk 0:02:02.1]} 25.
Rxe1 {[%clk 0:01:44.1]} 25... gxf4 {[%clk 0:02:01.5]} 26. gxf4 {[%clk
0:01:44.5]} 26... Rcd8 {[%clk 0:02:00.7]} 27. Be4 {[%clk 0:01:39.1]} 27... Rd4
{[%clk 0:01:56.8]} 28. Qf3 {[%clk 0:01:31]} 28... Rxe4 {[%clk 0:01:52.5]} 29.
Rxe4 {[%clk 0:01:31.9]} 29... f5 {[%clk 0:01:50.4]} 0-1

[Event "Early-Titled-Tuesday-Blitz-February-06-2024"]
[Site "Chess.com"]
[Date "2024.02.06"]
[Round "10"]
[White "ChessQueen"]
[Black "korkmaz16"]
[Result "1-0"]
[WhiteElo "2684"]
[BlackElo "2512"]
[TimeControl "180+1"]
[EndTime "9:52:25 PST"]
[Termination "ChessQueen won by resignation"]

1. Nf3 {[%clk 0:02:48.5]} 1... d5 {[%clk 0:02:56.1]} 2. g3 {[%clk 0:02:48.7]}
2... g6 {[%clk 0:02:55.4]} 3. Bg2 {[%clk 0:02:48.8]} 3... Bg7 {[%clk 0:02:56]}
4. O-O {[%clk 0:02:49.4]} 4... e5 {[%clk 0:02:56.2]} 5. d4 {[%clk 0:02:48.9]}
5... exd4 {[%clk 0:02:50.1]} 6. Nxd4 {[%clk 0:02:49]} 6... Ne7 {[%clk
0:02:49.8]} 7. a4 {[%clk 0:02:48.3]} 7... O-O {[%clk 0:02:49]} 8. Nb3 {[%clk
0:02:47.8]} 8... Nbc6 {[%clk 0:02:47.3]} 9. Nc3 {[%clk 0:02:47.7]} 9... Be6
{[%clk 0:02:45.1]} 10. Nc5 {[%clk 0:02:47.3]} 10... Bc8 {[%clk 0:02:44.8]} 11.
Bg5 {[%clk 0:02:45.6]} 11... b6 {[%clk 0:02:39.2]} 12. Nxd5 {[%clk 0:02:42.3]}
12... f6 {[%clk 0:02:23.4]} 13. Nxe7+ {[%clk 0:02:40.5]} 13... Qxe7 {[%clk
0:02:23.8]} 14. Bxc6 {[%clk 0:02:32.7]} 14... Qxc5 {[%clk 0:02:22]} 15. Bxa8
{[%clk 0:02:26.4]} 15... Qxg5 {[%clk 0:02:19.5]} 16. Qd5+ {[%clk 0:02:24.4]}
16... Qxd5 {[%clk 0:01:35.7]} 17. Bxd5+ {[%clk 0:02:25.3]} 17... Kh8 {[%clk
0:01:34.7]} 18. c3 {[%clk 0:02:24]} 18... f5 {[%clk 0:01:27.6]} 19. Rfd1 {[%clk
0:02:23.5]} 19... Ba6 {[%clk 0:01:27.6]} 20. Rd2 {[%clk 0:02:22.6]} 20... Bh6
{[%clk 0:01:26.2]} 21. e3 {[%clk 0:02:23]} 21... c5 {[%clk 0:01:21.3]} 22. Rad1
{[%clk 0:02:22.1]} 22... Bg5 {[%clk 0:01:18.6]} 23. h4 {[%clk 0:02:20.6]} 23...
Bf6 {[%clk 0:01:18.5]} 24. Bc6 {[%clk 0:02:18.8]} 24... Bc4 {[%clk 0:01:18]} 25.
Bd5 {[%clk 0:02:15.2]} 25... Ba6 {[%clk 0:01:15.9]} 26. Kg2 {[%clk 0:02:15.1]}
26... Kg7 {[%clk 0:01:15.2]} 27. Bf3 {[%clk 0:02:13.3]} 27... Kh6 {[%clk
0:01:15]} 28. Rd7 {[%clk 0:02:12.2]} 28... Bc4 {[%clk 0:01:07.9]} 29. Rxa7
{[%clk 0:02:11.1]} 1-0

[Event "Early-Titled-Tuesday-Blitz-February-06-2024"]
[Site "Chess.com"]
[Date "2024.02.06"]
[Round "10"]
[White "BeautiFullMindChess"]
[Black "SharapovEvgeny"]
[Result "0-1"]
[WhiteElo "2305"]
[BlackElo "2535"]
[TimeControl "180+1"]
[EndTime "9:52:38 PST"]
[Termination "SharapovEvgeny won on time"]

1. e4 {[%clk 0:03:00.9]} 1... c5 {[%clk 0:02:59.8]} 2. c3 {[%clk 0:02:58.4]}
2... Nf6 {[%clk 0:02:59.6]} 3. e5 {[%clk 0:02:58.4]} 3... Nd5 {[%clk 0:02:59.7]}
4. d4 {[%clk 0:02:59.3]} 4... cxd4 {[%clk 0:02:59.7]} 5. cxd4 {[%clk 0:02:59.8]}
5... Nc6 {[%clk 0:02:59.9]} 6. Nf3 {[%clk 0:02:59.1]} 6... d6 {[%clk 0:03:00]}
7. Bc4 {[%clk 0:02:58.7]} 7... Nb6 {[%clk 0:03:00]} 8. Bb3 {[%clk 0:02:58.9]}
8... d5 {[%clk 0:02:59.5]} 9. Nh4 {[%clk 0:02:56.8]} 9... g6 {[%clk 0:02:58.5]}
10. Nc3 {[%clk 0:02:50.1]} 10... Bg7 {[%clk 0:02:58.2]} 11. h3 {[%clk
0:02:49.2]} 11... O-O {[%clk 0:02:57.9]} 12. O-O {[%clk 0:02:49.3]} 12... f6
{[%clk 0:02:58]} 13. exf6 {[%clk 0:02:27.8]} 13... exf6 {[%clk 0:02:57.9]} 14.
Nf3 {[%clk 0:02:23.6]} 14... Be6 {[%clk 0:02:57.4]} 15. Re1 {[%clk 0:02:22]}
15... Bf7 {[%clk 0:02:57.3]} 16. Bf4 {[%clk 0:02:21.8]} 16... Qd7 {[%clk
0:02:57.3]} 17. Nb5 {[%clk 0:02:18.9]} 17... Nc4 {[%clk 0:02:50.5]} 18. Bxc4
{[%clk 0:01:39]} 18... dxc4 {[%clk 0:02:49.9]} 19. Nc7 {[%clk 0:01:38.7]} 19...
Rac8 {[%clk 0:02:45.5]} 20. d5 {[%clk 0:01:37.9]} 20... Ne5 {[%clk 0:02:32.2]}
21. Ne6 {[%clk 0:01:25.5]} 21... Bxe6 {[%clk 0:02:25.3]} 0-1